Cogmind - Beta 16.1 *** ADVENTURER MODE // 2026.03.25 @ 22:13:07 Player: Sharded of Serpulo Result: Self-destructed Performance ------------- Evolutions (2) 1000 Regions Visited (3) 600 Robots Destroyed (44) 220 Value Destroyed (812) 812 Prototype IDs (0) 0 Alien Tech Used (0) 0 Bonus (0) 0 TOTAL SCORE: 2632 Bonus ------- None Cogmind --------- Core Integrity 20/550 Matter 85/300 Energy 92/265 System Corruption 2% Temperature Cool (0) Movement Core (450) Ox8 Location -8/Materials Parts ------- > --- POWER (1) -------- Improved Ion Engine > --- PROPULSION (4) --- (None) > --- UTILITY (4) ------ Large Storage Unit System Shield > --- WEAPON (2) ------- (None) > --- INVENTORY (15) --- Improved Ion Engine Improved Ion Engine System Shield System Shield Peak State ------------ > --- POWER ------------ Improved Ion Engine > --- PROPULSION ------- Aluminum Leg Aluminum Leg Aluminum Leg > --- UTILITY ---------- Large Storage Unit Light Armor Plating System Shield System Shield > --- WEAPON ----------- Assault Cannon Assault Cannon > --- INVENTORY -------- Light Ion Engine Light Ion Engine Improved Ion Engine Improved Ion Engine Improved Ion Engine System Shield System Shield Beam Rifle Assault Cannon Assault Cannon Mini Grenade Launcher [Rating: 21] Favorites ----------- Power Light Ion Engine Engine Light Ion Engine Propulsion Aluminum Leg Treads Light Treads Leg Aluminum Leg Utility Large Storage Unit Storage Large Storage Unit Hackware System Shield Protection Light Armor Plating Weapon Assault Cannon Energy Gun Beam Rifle Ballistic Gun Assault Rifle Ballistic Cannon Assault Cannon Launcher Mini Grenade Launcher Build | -11 -10 -9 -8 ------- Run | Yrd Mat Mat Mat Slots Evolved 4 | . . 2 2 Power . | . . . . Propulsion 2 | . . 2 . Utility 2 | . . . 2 Weapon . | . . . . Parts Attached 36 | 6 1 16 13 Power 6 | 1 . 2 3 Engine 6 | 1 . 2 3 Core . | . . . . Reactor . | . . . . Propulsion 10 | 2 . 5 3 Treads 2 | . . . 2 Leg 8 | 2 . 5 1 Wheel . | . . . . Hover . | . . . . Flight . | . . . . Utility 7 | 1 1 2 3 Device . | . . . . Storage 2 | 1 1 . . Processor . | . . . . Hackware 2 | . . . 2 Protection 3 | . . 2 1 Artifact . | . . . . Weapon 13 | 2 . 7 4 Energy Gun 1 | . . . 1 Energy Cannon . | . . . . Ballistic Gun 3 | 2 . 1 . Ballistic Cannon 4 | . . 2 2 Launcher 5 | . . 4 1 Special Weapon . | . . . . Impact Weapon . | . . . . Slashing Weapon . | . . . . Piercing Weapon . | . . . . Special Melee Weapon . | . . . . Unidentified Prototypes . | . . . . Parts Lost 25 | . . 7 18 Power 4 | . . 1 3 Propulsion 10 | . . 4 6 Utility 3 | . . 1 2 Weapon 8 | . . 1 7 Highest Loss Streak 9 | . . 5 9 To Critical Strikes . | . . . . Average Backups 7 | 1 3 10 8 Power 3 | . 1 4 4 Propulsion . | . 1 . . Utility 1 | . . 1 2 Weapon 2 | . . 4 2 Tool/Special . | . . . . Unused Backups 9 | . 5 . 4 Power 2 | . . . 2 Propulsion 5 | . 5 . . Utility 2 | . . . 2 Weapon . | . . . . Tool/Special . | . . . . Average Slot Usage (%) 77 | . 85 78 68 Engine 10 | . 14 11 6 Treads 1 | . . . 4 Leg 25 | . 28 30 13 Storage 11 | . 14 11 9 Hackware 3 | . . . 15 Protection 2 | . . 4 4 Ballistic Gun 10 | . 28 5 . Ballistic Cannon 8 | . . 10 14 Launcher 2 | . . 5 1 Peak Build Rating 21 | 6 7 16 21 Average Rating 11 | 3 6 12 16 On Entrance 7 | . 6 7 16 Avg Prop Armor Cover (%) . | . . . . Naked Turns . | . . . . Heaviest Build 41 | 12 27 40 41 Greatest Support 43 | 20 20 43 40 Greatest Overweight (x) 9 | 1 1 9 9 Average Overweight (x) . | . . . 1 Largest Inventory Capacity 15 | 8 15 15 15 Average Capacity 13 | 7 10 15 15 Most Carried 15 | 6 9 15 13 Average Carried 7 | 1 3 10 8 Final Capacity 15 | 8 15 15 15 Final Carried 13 | 1 9 13 4 Class Distribution -------------------- 62% | Mutant 20% | Hacker-Mutant 16% | Scavenger-Mutant Dominant Class ---------------- Mutant | -10/Materials Mutant | -9/Materials Hacker-Mutant | -8/Materials Resources | -11 -10 -9 -8 ----------- Run | Yrd Mat Mat Mat Matter Collected 789 | 176 27 327 259 Remotely . | . . . . Salvage Created 933 | . 112 540 281 Parts 63 | . 17 31 15 Haulers Intercepted 2 | . . 2 . Recyclers Shooed 2 | . . 1 1 Parts Field Recycled . | . . . . Retrieved Matter . | . . . . Parts Self-Destructed . | . . . . Prevented . | . . . . Parts Restored . | . . . . Kills | -11 -10 -9 -8 ------- Run | Yrd Mat Mat Mat Combat Hostiles Destroyed 32 | . 6 18 8 Guns 10 | . 6 3 1 Cannons 8 | . . 3 5 AOE 14 | . . 12 2 Classes Destroyed 8 | . 2 6 . Worker 5 | . 2 3 . Builder 2 | . . 2 . Hauler 2 | . . 2 . Recycler 3 | . . 2 1 Swarmer 17 | . 6 7 4 Grunt 10 | . . 8 2 Brawler 1 | . . 1 . Sentry 4 | . . 2 2 Best Kill Streak 10 | . 5 10 4 Combat Bots Only 6 | . 3 6 4 Max Kills in Single Turn 3 | . 2 3 2 Gunslinging . | . . . . Exploded 3 | . . 3 2 Melee . | . . . . Uniques/NPCs Destroyed . | . . . . Combat | -11 -10 -9 -8 -------- Run | Yrd Mat Mat Mat Hostile Shots Fired 520 | . 30 183 307 Missed 156 | . 13 62 81 Hits 364 | . 17 121 226 Projectile 364 | . 17 121 226 Critical Strikes 3 | . . 1 2 Damage Taken 3298 | . 103 973 2222 Core 713 | . 14 169 530 Absorbed by Shields . | . . . . Ignored by Resistances 999 | . 34 302 663 Regen/Repaired (Parts) 72 | . . 72 . Core Remaining (%) 83 | 100 94 57 . Volleys Fired 65 | . 8 28 29 Largest 2 | . 2 2 2 Hottest 86 | . 40 74 86 Shots Fired 98 | . 16 43 39 Gun 30 | . 16 9 5 Cannon 43 | . . 11 32 Launcher 25 | . . 23 2 Special . | . . . . Kinetic 68 | . 16 20 32 Thermal 5 | . . . 5 Explosive 25 | . . 23 2 Electromagnetic . | . . . . Robot Hit Streak 18 | . 4 18 16 Robot Miss Streak 5 | . 2 3 5 Penetration Max . | . . . . Secondary Targets 2 | . 2 . . Max Gunslinging Chain 1 | . 1 . . Shots Hit Robots 69 | . 10 33 26 Core Hits 65 | . 8 38 19 Critical Kills 1 | . 1 . . Critical Parts Destroyed . | . . . . Critical Strikes 2 | . 1 . 1 Destroy 1 | . 1 . . Blast 1 | . . . 1 Melee Attacks . | . . . . Impact . | . . . . Slashing . | . . . . Piercing . | . . . . Sneak Attacks . | . . . . Combat Hostiles . | . . . . Follow-up Attacks . | . . . . Damage Inflicted 2671 | . 177 1785 709 Guns 352 | . 177 131 44 Cannons 620 | . . 202 418 Explosions 1698 | . . 1452 246 Melee . | . . . . Ramming 1 | . . . 1 Kinetic 928 | . 177 333 418 Thermal 44 | . . . 44 Explosive 1698 | . . 1452 246 Electromagnetic . | . . . . Impact . | . . . . Slashing . | . . . . Piercing . | . . . . Highest Corruption 2 | . . . 2 Average Corruption 2 | . . . 2 Corruption Purged . | . . . . Corruption Blocked . | . . . . Effects 3 | . . . 3 Message Errors 1 | . . . 1 Parts Rejected 1 | . . . 1 Data Loss (minor) 1 | . . . 1 Overload Shots . | . . . . Overflow Damage 25 | . . 25 . Projectiles . | . . . . Explosions 25 | . . 25 . Melee . | . . . . Knockbacks 10 | . . . 10 Impact . | . . . . Kinetic 9 | . . . 9 Secondary 1 | . . . 1 Self-Inflicted Damage 78 | . . 24 54 Shots 3 | . . 1 2 Rammed 4 | . . . 4 Targets Rammed 4 | . . . 4 Kicked . | . . . . Crushed . | . . . . Highest Temperature 169 | . . 15 169 Average Temperature 36 | . . 7 49 Received Heat Transfer 1545 | . . 366 1179 Siege Activations . | . . . . Martial Activations . | . . . . Shielding Activations . | . . . . Robots Disrupted . | . . . . Combat Hostiles . | . . . . Robots Corrupted . | . . . . Combat Hostiles . | . . . . Parts Fried . | . . . . Impact Corruptions . | . . . . Robots Melted . | . . . . Combat Hostiles . | . . . . Parts Melted . | . . . . Heat Transferred 111 | . . . 111 Parts Sabotaged . | . . . . Parts Stolen . | . . . . Parts Stripped . | . . . . Power Chain Reactions . | . . . . Alert | -11 -10 -9 -8 ------- Run | Yrd Mat Mat Mat Maximum Alert Level 1 | . . 1 . Low Security (%) 66 | 100 100 22 100 Level 1 33 | . . 77 . Level 2 . | . . . . Level 3 . | . . . . Level 4 . | . . . . Level 5 . | . . . . High Security . | . . . . Max Security . | . . . . Peak Influence 397 | . 130 397 117 Initial 81 | . . 5 81 Average 135 | . 42 247 66 Influence Increases 1059 | . 156 615 288 Destroy 0b10 Robot/C 640 | . 120 360 160 Destroy 0b10 Robot/NC 60 | . 10 45 5 Destroy Leader 124 | . 20 74 30 Successful Hack 6 | . 6 . . Disable Machine 9 | . . . 9 Destroy Structure 130 | . . 91 39 Lose Combat Pursuer 90 | . . 45 45 Influence Decreases 1059 | . 140 406 513 Entered New Map 155 | . . 11 144 Time Decay 665 | . 140 325 200 Lost Part 239 | . . 70 169 Squads Dispatched 4 | . . 1 3 Investigation . | . . . . Extermination . | . . . . Reinforcement 4 | . . 1 3 Assault . | . . . . Garrison . | . . . . Intercept . | . . . . Searches Triggered . | . . . . Construction Impeded 1 | . . . 1 Haulers Reinforced . | . . . . Active Scanning Responses . | . . . . Cargo Convoy Interrupts . | . . . . Stealth | -11 -10 -9 -8 --------- Run | Yrd Mat Mat Mat Distress Signals 4 | . . 4 . Communications Jammed . | . . . . Distress Signals . | . . . . Times Spotted 61 | . 10 30 21 Peak Tracking Total 9 | . 3 8 9 Tactical Retreats 4 | . . 2 2 Traps | -11 -10 -9 -8 ------- Run | Yrd Mat Mat Mat Traps Triggered 1 | . . 1 . Indirectly . | . . . . Trap Hack Attempts . | . . . . Triggered . | . . . . Disarmed . | . . . . Reprogrammed . | . . . . Reused . | . . . . Traps Extracted . | . . . . Installed . | . . . . Triggered . | . . . . Machines | -11 -10 -9 -8 ---------- Run | Yrd Mat Mat Mat Machines Disabled 1 | . . . 1 Max in Single Turn 1 | . . . 1 Machines Repaired . | . . . . Machines Dismantled . | . . . . Machines Sabotaged . | . . . . Overloaded Fab Kills . | . . . . Hacking | -11 -10 -9 -8 --------- Run | Yrd Mat Mat Mat Machines Accessed 4 | . 2 1 1 Terminals 3 | . 2 . 1 Fabricators . | . . . . Repair Stations 1 | . . 1 . Recycling Units . | . . . . Scanalyzers . | . . . . Garrison Access . | . . . . Total Hacks 11 | . 3 5 3 Successful 8 | . 2 4 2 Failed 3 | . 1 1 1 Catastrophic . | . . . . Database Lockouts . | . . . . Manual . | . . . . Terminals 6 | . 3 . 3 Fabricators . | . . . . Repair Stations 5 | . . 5 . Recycling Units . | . . . . Scanalyzers . | . . . . Garrison Access . | . . . . Terminal Hacks 4 | . 2 . 2 Terminal Index 1 | . . . 1 Locate Traps 1 | . . . 1 Surveillance Status 1 | . 1 . . Zone Layout 1 | . 1 . . Fabricator Hacks . | . . . . Repair Station Hacks 4 | . . 4 . Scan Component 2 | . . 2 . Repair 2 | . . 2 . Recycling Unit Hacks . | . . . . Scanalyzer . | . . . . Garrison Access Hacks . | . . . . Unauthorized Hacks . | . . . . Terminals . | . . . . Fabricators . | . . . . Repair Stations . | . . . . Recycling Units . | . . . . Scanalyzers . | . . . . Garrison Access . | . . . . Data Cores Recovered . | . . . . Used . | . . . . Hacking Detections 2 | . 1 1 . Full Trace Events . | . . . . Feedback Events . | . . . . Feedback Blocked . | . . . . Robot Schematics Acquired . | . . . . Robots Built . | . . . . Authchips . | . . . . Time . | . . . . Total Robot Build Rating . | . . . . Part Schematics Acquired . | . . . . Parts Built . | . . . . Authchips . | . . . . Time . | . . . . Total Part Build Rating . | . . . . Part Studies Acquired . | . . . . Parts Repaired 2 | . . 2 . Time 52 | . . 52 . Parts Recycled . | . . . . Recycled Matter . | . . . . Retrieved Matter . | . . . . Retrieved Components . | . . . . Parts Scanalyzed . | . . . . Part Schematics Acquired . | . . . . Parts Damaged . | . . . . Bothacking | -11 -10 -9 -8 ------------ Run | Yrd Mat Mat Mat Used RIF Installer . | . . . . Robots Hacked . | . . . . Non-combat . | . . . . Combat . | . . . . Robot Hacks Applied . | . . . . Relay Couplers Released . | . . . . Fabnet Peak Effective % . | . . . . Robots Rewired . | . . . . Allies Hacked . | . . . . Hacks Repelled . | . . . . Allies | -11 -10 -9 -8 -------- Run | Yrd Mat Mat Mat Total Allies . | . . . . Largest Group . | . . . . Highest-Rated Group . | . . . . Highest-Rated Ally . | . . . . Total Orders . | . . . . Ally Attacks . | . . . . Total Damage . | . . . . Kills . | . . . . Allies Corrupted . | . . . . Allies Melted . | . . . . Intel | -11 -10 -9 -8 ------- Run | Yrd Mat Mat Mat Active Infowar (turns) . | . . . . Robot Analysis Total . | . . . . Derelict Logs Recovered . | . . . . Drone Launches . | . . . . Drone Recoveries . | . . . . Exploration | -11 -10 -9 -8 ------------- Run | Yrd Mat Mat Mat Turns Passed 1717 | 58 502 745 412 Spaces Moved 866 | 44 327 339 156 Core 32 | 22 . 1 9 Treads 39 | . . . 39 Legs 795 | 22 327 338 108 Wheels . | . . . . Hover . | . . . . Flight . | . . . . Fastest Speed 50 | 50 120 120 120 Average Speed 160 | 104 140 170 197 Slowest Speed 500 | 120 190 500 500 Overloaded Moves . | . . . . Propulsion Burnouts . | . . . . Robots Hopped . | . . . . Potential Cave-ins . | . . . . Cave-ins Triggered . | . . . . Exploration Rate (%) 29 | 3 52 38 25 Regions Visited 3 Branch Regions . Pre-discovered Areas . | . . . . Known Exits Taken . | . . . . Unknown Exits Taken 3 | 1 1 1 . Scrap Searched . | . . . . Spaces Dug . | . . . . Terrain Destroyed 138 | . . 106 32 Melee . | . . . . Projectile 8 | . . 2 6 AOE 130 | . . 104 26 Terrain Rammed . | . . . . Walls Destroyed . | . . . . Machines Disabled . | . . . . Actions | -11 -10 -9 -8 --------- Run | Yrd Mat Mat Mat Total 1081 | 56 355 462 208 Wait 52 | . . 52 . Move 863 | 43 326 338 156 Hop . | . . . . Pick Up 46 | 7 14 20 5 Fast Attach 1 | . . 1 . Attach 30 | 6 . 10 14 Detach . | . . . . Swap 8 | . 1 7 . Drop 12 | . 6 6 . Fire 65 | . 8 28 29 Melee . | . . . . Ram 4 | . . . 4 Kick . | . . . . Crush . | . . . . Escape Stasis . | . . . . Rewire . | . . . . Trap . | . . . . Miscellaneous . | . . . . Route ------- -11/Scrapyard -10/Materials (discovered 2 exits: *Mat / [*Min]) -9/Materials -8/Materials History --------- Turn | Location | Event 27 | -11/Scrapyard | Discovered new exit (range 13) 59 | -11/Scrapyard | Entered Materials 212 | -10/Materials | Discovered new exit (range 11) 303 | -10/Materials | Discovered new exit (range 16) 307 | -10/Materials | Build established: Mutant 561 | -10/Materials | Entered another Materials area 561 | -9/Materials | Evolved 2 slots: Propulsion x2 758 | -9/Materials | Lost 5 parts (1p2n1u1w) 1050 | -9/Materials | Discovered new exit (range 11) 1253 | -9/Materials | Repaired Aluminum Leg 1281 | -9/Materials | Repaired Aluminum Leg 1306 | -9/Materials | Entered another Materials area 1306 | -8/Materials | Evolved 2 slots: Utility x2 1547 | -8/Materials | Core integrity fell below 50% 1556 | -8/Materials | Lost 7 parts (3n4w) 1641 | -8/Materials | Build established: Hacker-Mutant 1702 | -8/Materials | Core integrity fell below 20% 1718 | -8/Materials | Self-destructed Last Messages --------------- Acquired 1 matter. Atomic Centrifuge disabled. G-47 Trooper knocked back. Assault Cannon destroyed. Acquired 6 matter. Lgt. Treads destroyed. Acquired 5 matter. Aluminum Leg destroyed. M-13 Machinist repairs G-47 Trooper. Acquired Missile Launcher. R-06 Scavenger destroyed. U-05 Engineer builds a Door. System Shield destroyed. U-05 Engineer builds a Wall. U-05 Engineer builds a Door. Acquired 72 matter. Lgt. Ion Engine destroyed. U-05 Engineer lays Concrete. Missile Launcher destroyed. U-05 Engineer lays Concrete. Map ----- +----------------------------------------------------+ | ?????????????????????????????????????????????????? | | ?????????????????????????????????????????????????? | | ?????????????????????????????????????????????????? | | ?????????????????????????????????????????????????? | | ?????????????????????????????????????????????????? | | ?????????????????????????????????????????????????? | | ?????????????????????????????????????????????????? | | ?????????????????????????????????????????????????? | | ?????????????????????????????????????????????????? | | ?????????????????????????????????????????????????? | | ?????????????????????????????????????????????????? | | ?????????????????????????????????????????????????? | | ?????????????????????????????????????????????????? | | ?????????????????????????????????????????????????? | | ?????????????????????????????????????????????????? | | ?????????????????????????????????????????????????? | | ????????????????????????????????????????????"????? | | ???????????????????????????????????????????? ??## | | ???????????????????????????????????????#####+#### | | ??????????????????????########?????????# | | ?????????????????????## !#??#??????# | | ?????????????????????# #? ##?????# | | ?????????????????????# # #?????# | | ?????????????????????# u# # ""# | | ?????????????????????# g u/ + ! # #### | | ?????????????????????## @g # ^##?#+## ##### | | ?????????????????????# # #??# # "T" | | ?????????????????????## # #?# # | | ??????????????????????## # ### / """ | | ???????????????????????# # T # """ | | ???????????????????????# # ### # """ | | ???????????????????????#### # #?# # | | ??????????????????????##### ### ###?# ##### | | ??????????????????????#!! ### ###?######+####### | | ??????????????????????#!! # # # ### # | | ??????????????????????#!! # ### [ # | | ??????????????????????#!! / # | | ??????????????????????#!! # ###* # | | ??????????????????????#!! # # ### # | | ??????????????????????##### # ## + | | ??????????????????????????# # """## ! # | | ??????????????????????????# # """## # | | ??????????????????????????# + ! """## # | | ??????????????????????????### """## # | | ????????????????????????????# ! ## # | | ????????????????????????????######### # | | ????????????????????????????????????############## | | ?????????????????????????????????????????????????? | | | | | +----------------------------------------------------+ Best States ------------- Heat Dissipation 31 Energy Generation 12 Energy Capacity 265 Matter Stores 300 Matter Capacity 300 Sight Range 16 Terrain Scan Density 10 Armor Coverage 225 Resistance: KI 20 Resistance: TH 20 Resistance: EX 20 Resistance: EM 20 Resistance: I 20 Resistance: S 20 Resistance: P 20 Evasion (%) 55 Recoil Reduction 2 Offensive Hacking 10 Defensive Hacking 20 Item Schematics ----------------- None Robot Schematics ------------------ None Fabricated ------------ Nothing Repaired ---------- Aluminum Leg | 71% | -9/Materials Aluminum Leg | 48% | -9/Materials Studied --------- None Alien Tech Used ----------------- None Achievements -------------- Hydra Challenges ------------ None Game ------ Seed PulseRemoteHammer Manual? 0 Play Time 00:19:46 Cumulative 6.8 hours Start 2026.03.25 @ 21:54:01 End 2026.03.25 @ 22:13:07 Sessions 1 Manual Loads 0 Difficulty Adventurer Special Mode None Game No. 15 Rogue 0 Adventurer 15 Explorer 0 Win Type - Total 0 Types 0/0/0/0/0/0/0/0/0/0 Lore% 8 Gallery% 10 Achievement% 10 Wizard Run 0 Options --------- Layout 1 ASCII 0 Keyboard 0 Movement Mouse Keybinds 0 Fullscreen 1 Font 32/Tamsyn Map View 50x35 Zoom Use 0% Tactical HUD 0 Map Filters NONE Filters NONE Steam 1 RUN: 56c64f75-9fb2-4be3-b7d8-f695f2fb2e5d